bitfinex-derivatives/quotes_BTCF0:USTF0_20250424
["timestamp","ask_amount","ask_price","bid_price","bid_amount"]
[1745460405039,0.1070034,93425.0,93424.0,0.46784]
[1745460405232,0.2790034,93425.0,93424.0,0.46784]
[1745460405939,0.2790034,93425.0,93424.0,0.5748446]
[1745460407130,0.2790034,93425.0,93424.0,0.4678046]
[1745460407542,0.2800034,93425.0,93424.0,0.4738046]
[1745460408043,0.2790034,93425.0,93424.0,0.4738046]
[1745460408735,0.2790034,93425.0,93424.0,0.5168046]
[1745460411243,0.172,93425.0,93424.0,0.5168046]
[1745460411441,0.172,93425.0,93424.0,0.6238446]
[1745460412232,0.1604976,93430.0,93429.0,0.1069988]
[1745460413243,0.1604976,93430.0,93429.0,0.1925988]
[1745460413544,0.0534988,93430.0,93429.0,0.1965988]
[1745460413747,0.1069956,93432.0,93431.0,0.1069954]
[1745460414147,0.1069956,93432.0,93431.0,0.1925954]
[1745460414948,0.1069956,93432.0,93431.0,0.1975954]
[1745460416149,0.0534975,93433.0,93432.0,0.1069954]
[1745460416352,0.0977975,93433.0,93432.0,0.5515954]
[1745460417245,0.0977975,93433.0,93432.0,0.5545954]
[1745460417445,0.0977975,93433.0,93432.0,0.5565954]
[1745460418354,0.0443,93433.0,93432.0,0.5565954]
[1745460419247,0.0443,93442.0,93441.0,0.1069851]
[1745460419452,0.1069906,93438.0,93437.0,0.0534944]
[1745460420246,0.1069943,93433.0,93432.0,0.002]
[1745460420445,0.4677943,93433.0,93432.0,0.002]
[1745460421043,0.1070011,93427.0,93426.0,0.1605021]
[1745460421847,0.1959011,93427.0,93426.0,0.2036021]
[1745460422147,0.1070046,93424.0,93423.0,0.0535028]
[1745460422349,0.1424006,93427.0,93426.0,0.003]
[1745460422544,0.0987006,93427.0,93426.0,0.003]
[1745460423146,0.2707006,93427.0,93426.0,0.003]
[1745460423954,0.1070126,93417.0,93412.0,0.0535091]
[1745460424148,0.4678126,93417.0,93412.0,0.1605263]
[1745460424459,0.4678126,93417.0,93413.0,0.1070163]
[1745460424754,0.4678126,93417.0,93413.0,0.1483163]
[1745460425144,0.6398126,93417.0,93416.0,0.00407047]
[1745460425955,0.6398126,93417.0,93416.0,0.00807047]
[1745460426344,0.65054588,93417.0,93416.0,0.00807047]
[1745460427543,0.65054588,93417.0,93405.0,0.00160566]
[1745460427544,0.1070252,93406.0,93405.0,0.00160566]
[1745460427757,0.1070252,93406.0,93400.0,0.1]
[1745460427758,0.1070309,93401.0,93400.0,0.1]
[1745460428153,0.11523512,93401.0,93400.0,0.1884]
[1745460428555,0.11523512,93401.0,93400.0,0.2954321]
[1745460429150,0.11523512,93401.0,93400.0,0.1884]
[1745460430057,0.11523512,93401.0,93400.0,0.1934]
[1745460430760,0.11523512,93401.0,93400.0,0.105]
[1745460431160,0.28723512,93401.0,93400.0,0.105]
[1745460432158,0.78723512,93401.0,93400.0,0.105]
[1745460432859,0.83283512,93401.0,93400.0,0.105]
[1745460433160,0.83283512,93401.0,93400.0,0.2954321]
[1745460433358,0.22580422,93401.0,93400.0,0.2974321]
[1745460433555,0.22580422,93401.0,93400.0,0.3396321]
[1745460434265,0.00820422,93401.0,93400.0,0.3396321]
[1745460434563,0.114,93406.0,93405.0,0.1070263]
[1745460434861,0.11412,93406.0,93405.0,0.1070263]
[1745460435058,0.2211452,93406.0,93405.0,0.1070263]
[1745460435449,0.2211452,93406.0,93405.0,0.1962263]
[1745460436258,0.2211452,93406.0,93405.0,0.1972263]
[1745460436849,0.2211452,93406.0,93405.0,0.1982263]
[1745460437458,0.11412,93406.0,93405.0,0.1982263]
[1745460437661,0.1070155,93417.0,93416.0,0.1605131]
[1745460437854,0.1755355,93417.0,93416.0,0.1605131]
[1745460438850,0.1755355,93417.0,93416.0,0.2140184]
[1745460439051,0.01054625,93421.0,93414.0,0.1288]
[1745460439256,0.06852,93421.0,93418.0,0.0535052]
[1745460439456,0.06852,93421.0,93420.0,0.1070092]
[1745460439653,0.0534974,93433.0,93426.0,0.1070023]
[1745460439854,0.06852,93427.0,93426.0,0.1070023]
[1745460440253,0.06852,93427.0,93426.0,0.2362023]
[1745460440766,0.1755211,93427.0,93426.0,0.2362023]
[1745460440954,0.1765211,93427.0,93426.0,0.2362023]
[1745460441155,0.1775211,93427.0,93426.0,0.2362023]
[1745460442571,0.1605136,93421.0,93420.0,0.107008]
[1745460442772,0.0535044,93421.0,93420.0,0.149508]
[1745460443062,0.0979044,93421.0,93420.0,0.195908]
[1745460443863,0.0989044,93421.0,93420.0,0.195908]
[1745460444064,0.0999044,93421.0,93420.0,0.195908]
[1745460445566,0.1466044,93421.0,93420.0,0.195908]
[1745460447166,0.0999044,93421.0,93420.0,0.195908]
[1745460447356,0.002,93421.0,93420.0,0.195908]
[1745460447663,0.002,93421.0,93420.0,0.239508]
[1745460448166,0.002,93421.0,93420.0,0.411508]
[1745460448356,0.002,93421.0,93420.0,0.518552]
[1745460449254,0.001,93421.0,93420.0,0.518552]
[1745460449454,0.002,93421.0,93420.0,0.518552]
[1745460449961,0.001,93421.0,93420.0,0.518552]
[1745460450265,0.1070048,93424.0,93423.0,0.1605058]
[1745460450466,0.1070048,93424.0,93423.0,0.2512058]
[1745460450666,0.1070048,93424.0,93423.0,0.3582458]
[1745460451659,0.1080048,93424.0,93423.0,0.3582458]
[1745460452668,0.1090048,93424.0,93423.0,0.3582458]
[1745460453869,0.002,93424.0,93423.0,0.3582458]
[1745460455960,0.1090046,93424.0,93423.0,0.3582458]
[1745460456160,0.1536046,93424.0,93423.0,0.3582458]
[1745460456360,0.0466,93424.0,93423.0,0.3582458]
[1745460457063,0.0466,93424.0,93423.0,0.2512058]
[1745460458761,0.0454,93432.0,93431.0,0.1069966]
[1745460458965,0.06852,93440.0,93439.0,0.1069874]
[1745460459165,0.2206083,93440.0,93439.0,0.1069874]
[1745460459374,0.2651083,93440.0,93439.0,0.1069874]
[1745460460273,0.2681083,93440.0,93439.0,0.1069874]
[1745460460471,0.046,93440.0,93439.0,0.1069874]
[1745460460776,0.05,93440.0,93439.0,0.1069874]
[1745460461179,0.222,93440.0,93439.0,0.1069874]
[1745460461370,0.3289862,93440.0,93439.0,0.1069874]
[1745460461569,0.3752862,93440.0,93439.0,0.1069874]
[1745460466772,0.1069954,93432.0,93431.0,0.5212917]
[1745460466980,0.1069936,93434.0,93433.0,0.1069931]
[1745460467180,0.2376936,93434.0,93433.0,0.1069931]
[1745460468075,0.4096936,93434.0,93433.0,0.1069931]
[1745460469078,0.4116936,93434.0,93433.0,0.1069931]
[1745460469881,0.4146936,93434.0,93433.0,0.1069931]
[1745460470478,0.4126936,93434.0,93433.0,0.1069931]
[1745460470675,0.4156936,93434.0,93433.0,0.1069931]
[1745460471076,0.2436936,93434.0,93433.0,0.1069931]
[1745460472085,0.2406936,93434.0,93433.0,0.1069931]
[1745460472285,0.2436936,93434.0,93433.0,0.1069931]
[1745460472680,0.2406936,93434.0,93433.0,0.1069931]
[1745460472883,0.2436936,93434.0,93433.0,0.1513931]
[1745460473400,0.4156936,93434.0,93433.0,0.1513931]
[1745460474292,0.2436936,93434.0,93433.0,0.1513931]
[1745460475589,0.2436936,93434.0,93433.0,0.1975931]
[1745460476180,0.0915,93434.0,93433.0,0.1975931]
[1745460476378,0.0487,93434.0,93433.0,0.1975931]
[1745460476583,0.0457,93434.0,93433.0,0.2411931]
[1745460476895,0.0487,93434.0,93433.0,0.2411931]
[1745460477481,0.0517,93434.0,93433.0,0.2411931]
[1745460478482,0.0507,93434.0,93433.0,0.2411931]
[1745460478887,0.0447,93434.0,93433.0,0.2411931]
[1745460479094,0.0467,93434.0,93433.0,0.2411931]
[1745460479288,0.1536931,93434.0,93433.0,0.1975931]
[1745460479686,0.0467,93434.0,93433.0,0.1975931]
[1745460479883,0.004,93434.0,93433.0,0.1975931]
[1745460484294,0.06896,93445.0,93433.0,0.25112509]
[1745460484498,0.06896,93445.0,93444.0,0.1069817]
[1745460484692,0.0011,93447.0,93444.0,0.1069817]
[1745460484693,0.0011,93447.0,93446.0,0.1069794]
[1745460485196,0.06896,93455.0,93447.0,0.1069782]
[1745460485390,0.06896,93455.0,93454.0,0.1069702]
[1745460485998,0.06896,93455.0,93454.0,0.1964702]
[1745460486791,0.07496,93455.0,93454.0,0.1974702]
[1745460487894,0.08314219,93455.0,93454.0,0.1974702]
[1745460488194,0.02018219,93455.0,93454.0,0.1984702]
[1745460488500,0.06896,93465.0,93463.0,0.1069599]
[1745460488694,0.06896,93465.0,93463.0,0.4677599]
[1745460488899,0.06896,93465.0,93463.0,0.48352088]
[1745460489087,0.17360575,93464.0,93463.0,0.48352088]
[1745460489288,0.17360575,93464.0,93463.0,0.54014377]
[1745460489790,0.18160575,93464.0,93463.0,0.54114377]
[1745460490000,0.18860575,93464.0,93463.0,0.58754377]
[1745460490297,0.23380575,93464.0,93463.0,0.58754377]
[1745460490899,0.0699,93477.0,93476.0,0.106945]
[1745460491197,0.0011,93477.0,93476.0,0.11886789]
[1745460491698,0.0011,93477.0,93476.0,0.13462887]
[1745460491897,0.0011,93477.0,93476.0,0.18022887]
[1745460492301,0.18123511,93477.0,93476.0,0.22532887]
[1745460492694,0.1761,93477.0,93476.0,0.22532887]
[1745460493096,0.1781,93477.0,93476.0,0.22532887]
[1745460493700,0.18593092,93477.0,93476.0,0.33230887]
[1745460493900,0.047,93484.0,93483.0,0.106937]
[1745460494203,0.07953234,93494.0,93492.0,0.1069267]
[1745460494396,0.07953234,93494.0,93492.0,0.1188902]
[1745460494603,0.00949591,93493.0,93492.0,0.13465118]
[1745460494900,0.00160559,93493.0,93492.0,0.13465118]
[1745460495101,0.0435,93504.0,93495.0,0.0534613]
[1745460495102,0.044,93503.0,93495.0,0.0534613]
[1745460495298,0.0688,93506.0,93505.0,0.1069119]
[1745460495489,0.0688,93506.0,93505.0,0.1168754]
[1745460495690,0.0688,93506.0,93505.0,0.13275554]
[1745460495897,0.1123,93506.0,93505.0,0.13275554]
[1745460496205,0.2843,93506.0,93505.0,0.17365554]
[1745460496402,0.2843,93506.0,93505.0,0.21745554]
[1745460496593,0.29248487,93506.0,93505.0,0.21745554]
[1745460496900,0.39939557,93506.0,93505.0,0.21745554]
[1745460497401,0.44289557,93506.0,93505.0,0.20537288]
[1745460497601,0.44289557,93506.0,93505.0,0.21748827]
[1745460498397,0.44289557,93506.0,93505.0,0.21845138]
[1745460498597,0.44289557,93506.0,93505.0,0.22145138]
[1745460500092,0.33598487,93506.0,93505.0,0.22145138]
[1745460500297,0.29248487,93506.0,93505.0,0.22145138]
[1745460500593,0.24898487,93506.0,93505.0,0.22145138]
[1745460500901,0.0451,93512.0,93511.0,0.106905]
[1745460501104,0.3608,93522.0,93521.0,0.1068936]
[1745460501291,0.3608,93522.0,93521.0,0.12265458]
[1745460501492,0.4042,93522.0,93521.0,0.12265458]
[1745460502101,0.5762,93522.0,93521.0,0.12265458]
[1745460502503,0.6211,93522.0,93521.0,0.16885458]
[1745460502705,0.06876,93529.0,93528.0,0.1068856]
[1745460502902,0.0873,93536.0,93535.0,0.1068776]
[1745460503093,0.4090764,93536.0,93535.0,0.1068776]
[1745460503293,0.4090764,93536.0,93535.0,0.01576098]
[1745460503602,0.4090764,93536.0,93535.0,0.12263858]
[1745460504198,0.41725842,93536.0,93535.0,0.12263858]
[1745460504599,0.41825842,93536.0,93535.0,0.12263858]
[1745460505506,0.41825842,93536.0,93535.0,0.12463858]
[1745460507506,0.31138202,93536.0,93535.0,0.12463858]
[1745460507804,0.22408202,93536.0,93535.0,0.12463858]
[1745460508203,0.22408202,93536.0,93535.0,0.22589637]
[1745460508512,0.18118202,93536.0,93535.0,0.22589637]
[1745460508702,0.0052,93544.0,93543.0,0.1068684]
[1745460508906,0.05785349,93544.0,93543.0,0.12262938]
[1745460509103,0.33672079,93544.0,93543.0,0.12262938]
[1745460509303,0.3288673,93544.0,93543.0,0.12262938]
[1745460510009,0.3726673,93544.0,93543.0,0.12262938]
[1745460510814,0.3736673,93544.0,93543.0,0.12262938]
[1745460511308,0.3736673,93544.0,93543.0,0.1068684]
[1745460511913,0.3736673,93544.0,93543.0,0.1522684]
[1745460512812,0.18620921,93544.0,93543.0,0.1522684]
[1745460513013,0.15942,93564.0,93563.0,0.1068456]
[1745460513409,0.1602425,93581.0,93559.0,0.0534245]
[1745460513711,0.0456,93571.0,93570.0,0.23516764]
[1745460513914,0.0456,93571.0,93570.0,0.1068376]
[1745460514209,0.3244365,93571.0,93570.0,0.1068376]
[1745460514410,0.33263577,93571.0,93570.0,0.1492376]
[1745460514807,0.33263577,93571.0,93570.0,0.16563464]
[1745460515512,0.33363577,93571.0,93570.0,0.16563464]
[1745460515708,0.33363577,93571.0,93570.0,0.1492376]
[1745460516109,0.0534198,93569.0,93546.0,0.3608]
[1745460516302,0.1068605,93550.0,93549.0,0.1510595]
[1745460516908,0.106873,93539.0,93538.0,0.3608]
[1745460517113,0.1068753,93537.0,93526.0,0.0534434]
[1745460517314,0.1068753,93537.0,93520.0,0.16254152]
[1745460517613,0.1068753,93537.0,93536.0,0.01711663]
[1745460517911,0.2436753,93537.0,93536.0,0.01711663]
[1745460518111,0.4156753,93537.0,93536.0,0.01711663]
[1745460518516,0.4156753,93537.0,93536.0,0.12399303]
[1745460518517,0.3088,93537.0,93536.0,0.12399303]
[1745460518709,0.2172,93537.0,93536.0,0.14316149]
[1745460518914,0.172,93537.0,93536.0,0.15116149]
[1745460519315,0.172,93537.0,93536.0,0.20391234]
[1745460519505,0.172,93537.0,93536.0,0.24731234]
[1745460519712,0.172,93537.0,93536.0,0.24331234]
[1745460520203,0.172,93537.0,93536.0,0.23665615]
[1745460520409,0.172,93537.0,93536.0,0.23965615]
[1745460521012,0.172,93537.0,93536.0,0.24265615]
[1745460521209,0.172,93537.0,93536.0,0.23865615]
[1745460521514,0.172,93537.0,93536.0,0.24465615]
[1745460521515,0.14253717,93537.0,93536.0,0.24465615]
[1745460521913,0.03566187,93537.0,93536.0,0.24465615]
[1745460522113,0.03566187,93537.0,93536.0,0.24565615]
[1745460523117,0.03566187,93537.0,93536.0,0.24562138]
[1745460523803,0.14253717,93537.0,93536.0,0.24562138]
[1745460525312,0.03566187,93537.0,93536.0,0.24562138]
[1745460526204,0.03031553,93537.0,93536.0,0.24562138]
[1745460528503,0.03031553,93537.0,93536.0,0.23999797]
[1745460529514,0.03031553,93537.0,93536.0,0.24523968]
[1745460533407,0.03031553,93537.0,93536.0,0.23999797]
[1745460534416,0.03031553,93537.0,93536.0,0.2452012]
[1745460535213,0.3608,93556.0,93551.0,0.1068593]
[1745460535419,0.1068549,93555.0,93551.0,0.12436747]
[1745460535617,0.1567549,93555.0,93554.0,0.1068559]
[1745460535922,0.1009,93555.0,93554.0,0.12436407]
[1745460536120,0.2219,93555.0,93554.0,0.11205913]
[1745460536318,0.172,93555.0,93554.0,0.12458743]
[1745460536514,0.172,93555.0,93554.0,0.14063496]
[1745460536714,0.2192,93555.0,93554.0,0.14063496]
[1745460537421,0.2192,93555.0,93554.0,0.14763496]
[1745460537823,0.172,93555.0,93554.0,0.14763496]
[1745460538123,0.172,93555.0,93554.0,0.14770128]
[1745460539220,0.1763923,93575.0,93570.0,0.1068376]
[1745460539426,0.0499,93574.0,93570.0,0.14066887]
[1745460539720,0.0499,93574.0,93573.0,0.1068342]
[1745460540023,0.0499,93574.0,93573.0,0.12461794]
[1745460540222,0.3608,93580.0,93575.0,0.0534154]
[1745460540421,0.05,93585.0,93584.0,0.1068216]
[1745460540631,0.1014,93585.0,93584.0,0.12460534]
[1745460540930,0.1014,93585.0,93584.0,0.14065287]
[1745460541117,0.00812911,93586.0,93585.0,0.1068205]
[1745460541320,0.00812911,93586.0,93585.0,0.17660424]
[1745460541510,0.0497,93588.0,93587.0,0.1068182]
[1745460541718,0.0497,93588.0,93587.0,0.13539403]
[1745460541913,0.1511,93588.0,93587.0,0.13539403]
[1745460542109,0.1511,93588.0,93587.0,0.14103822]
[1745460542320,0.1511,93588.0,93587.0,0.14103529]
[1745460542519,0.1511,93588.0,93587.0,0.13539403]
[1745460542720,0.1511,93588.0,93587.0,0.13539035]
[1745460543116,0.26587955,93588.0,93587.0,0.02857215]
[1745460543519,0.26587955,93588.0,93587.0,0.02838927]
[1745460543827,0.26587955,93588.0,93587.0,0.01586465]
[1745460544023,0.1068182,93587.0,93586.0,0.1068185]
[1745460544521,0.2050182,93587.0,93586.0,0.11934393]
[1745460544718,0.05766245,93588.0,93587.0,0.1068182]
[1745460544719,0.00796245,93588.0,93587.0,0.1068182]
[1745460544918,0.00796245,93588.0,93587.0,0.22094363]
[1745460545115,0.00160395,93590.0,93589.0,0.1068159]
[1745460545312,0.00160395,93590.0,93589.0,0.11934133]
[1745460546317,0.00948223,93590.0,93589.0,0.11933927]
[1745460546624,0.05808223,93590.0,93589.0,0.11933927]
[1745460551727,0.05808223,93590.0,93589.0,0.01252337]
[1745460551928,0.0534192,93570.0,93565.0,0.36240311]
[1745460552123,0.0534199,93568.0,93565.0,0.00160311]
[1745460552318,0.1068422,93566.0,93565.0,0.10844531]
[1745460552824,0.2017422,93566.0,93565.0,0.10844531]
[1745460553327,0.2017422,93566.0,93565.0,0.00160311]
[1745460553826,0.2017422,93566.0,93565.0,0.10844641]
[1745460554225,0.2017422,93566.0,93565.0,0.11144641]
[1745460554820,0.0949,93566.0,93565.0,0.11444641]
[1745460555219,0.0473,93566.0,93565.0,0.11444641]
[1745460555628,0.0473,93566.0,93565.0,0.11144641]
[1745460555828,0.0473,93566.0,93565.0,0.21014641]
[1745460556022,0.0473,93566.0,93565.0,0.21843083]
[1745460556429,0.0473,93566.0,93565.0,0.21314641]
[1745460556627,0.0473,93566.0,93565.0,0.2184601]
[1745460556927,0.0473,93566.0,93565.0,0.21314641]
[1745460558234,0.0473,93566.0,93565.0,0.21852442]
[1745460558934,0.0473,93566.0,93565.0,0.21850765]
[1745460559133,0.0473,93566.0,93565.0,0.21314641]
[1745460560335,0.1541422,93566.0,93565.0,0.00860311]
[1745460560728,0.0473,93566.0,93565.0,0.00860311]
[1745460561032,0.0473,93566.0,93565.0,0.11544641]
[1745460561627,0.0473,93566.0,93565.0,0.11144641]
[1745460561830,0.0473,93566.0,93565.0,0.20984641]
[1745460562536,0.0473,93566.0,93565.0,0.21184641]
[1745460563536,0.1541422,93566.0,93565.0,0.00860311]
[1745460563934,0.1068593,93551.0,93550.0,0.0498]
[1745460564236,0.0534289,93553.0,93528.0,0.01047548]
[1745460564435,0.1068661,93546.0,93545.0,0.1068652]
[1745460564841,0.1068708,93542.0,93541.0,0.1603038]
[1745460565038,0.1068674,93544.0,93543.0,0.1068673]
[1745460565236,0.0468,93545.0,93544.0,0.1068673]
[1745460565438,0.2037662,93545.0,93544.0,0.1068673]
[1745460566235,0.2037662,93545.0,93544.0,0.1108673]
[1745460567038,0.0969,93545.0,93544.0,0.1108673]
[1745460567228,0.0969,93545.0,93544.0,0.1158673]
[1745460567635,0.0468,93545.0,93544.0,0.1158673]
[1745460568236,0.0468,93545.0,93544.0,0.1643673]
[1745460571651,0.1536662,93545.0,93544.0,0.1643673]
[1745460571947,0.1536662,93545.0,93536.0,0.0010691]
[1745460571948,0.1068753,93537.0,93536.0,0.0010691]
[1745460572844,0.2035753,93537.0,93536.0,0.0010691]
[1745460573049,0.0967,93537.0,93536.0,0.0010691]
[1745460573253,0.0967,93537.0,93536.0,0.1099455]
[1745460573547,0.2794153,93537.0,93536.0,0.1099455]
[1745460574456,0.2794153,93537.0,93536.0,0.1119455]
[1745460574746,0.2794153,93537.0,93536.0,0.1099455]
[1745460574950,0.2794153,93537.0,93536.0,0.1119455]
[1745460575254,0.17254,93537.0,93536.0,0.4727455]
[1745460575452,0.17254,93537.0,93536.0,0.4737455]
[1745460575954,0.17254,93537.0,93536.0,0.4727455]
[1745460576544,0.17254,93537.0,93536.0,0.4737455]
[1745460576941,0.2794153,93537.0,93536.0,0.1129455]
[1745460577447,0.2794153,93537.0,93536.0,0.1109455]
[1745460577652,0.2794153,93537.0,93536.0,0.1129455]
[1745460578054,0.2794153,93537.0,93536.0,0.1099455]
[1745460578263,0.2794153,93537.0,93536.0,0.0040691]
[1745460578551,0.28749412,93537.0,93536.0,0.0060691]
[1745460578859,0.106889,93525.0,93524.0,0.05170379]
[1745460579341,0.106889,93525.0,93524.0,0.15859399]
[1745460579746,0.205489,93525.0,93524.0,0.15859399]
[1745460579942,0.205489,93525.0,93524.0,0.05170379]
[1745460580147,0.205489,93525.0,93524.0,0.15859399]
[1745460580652,0.205489,93525.0,93524.0,0.16259399]
[1745460581450,0.205489,93525.0,93524.0,0.16559399]
[1745460584161,0.0986,93525.0,93524.0,0.16559399]
[1745460584455,0.3608,93531.0,93530.0,0.1068833]
[1745460584644,0.08799882,93537.0,93536.0,0.1068764]
[1745460585457,0.08799882,93537.0,93536.0,0.2021764]
[1745460586058,0.08799882,93537.0,93536.0,0.2031764]
[1745460586260,0.19487412,93537.0,93536.0,0.2031764]
[1745460590863,0.19487412,93537.0,93536.0,0.049]
[1745460591066,0.19487412,93537.0,93524.0,0.00160379]
[1745460591067,0.106889,93525.0,93524.0,0.00160379]
[1745460592163,0.4142438,93527.0,93524.0,0.00460379]
[1745460592369,0.0498,93526.0,93525.0,0.106889]
[1745460592567,0.50807882,93537.0,93525.0,0.0952]
[1745460592767,0.07992,93536.0,93535.0,0.1068776]
[1745460594171,0.07992,93536.0,93535.0,0.2043776]
[1745460594769,0.11495422,93537.0,93536.0,0.1068764]
[1745460594970,0.11495422,93537.0,93536.0,0.2048764]
[1745460595372,0.16425422,93537.0,93536.0,0.2048764]
[1745460596263,0.16425422,93537.0,93536.0,0.2058764]
[1745460596463,0.16425422,93537.0,93536.0,0.2078764]
[1745460598770,0.16425422,93537.0,93536.0,0.2068764]
[1745460600672,0.05737882,93537.0,93536.0,0.2068764]
[1745460600868,0.11495412,93537.0,93536.0,0.2068764]
[1745460601270,0.16465412,93537.0,93536.0,0.2068764]
[1745460602176,0.16465412,93537.0,93536.0,0.002]
[1745460602473,0.106889,93525.0,93515.0,0.0534496]
[1745460602666,0.467689,93525.0,93511.0,0.4647]
[1745460602862,0.1069016,93514.0,93513.0,0.0499]
[1745460603274,0.4677016,93514.0,93513.0,0.0499]
[1745460603968,0.5643016,93514.0,93513.0,0.0499]
[1745460604873,0.5643016,93514.0,93513.0,0.0549]
[1745460605373,0.5643016,93514.0,93513.0,0.0599]
[1745460607177,0.2035016,93514.0,93513.0,0.0599]
[1745460615681,0.2035016,93514.0,93513.0,0.01]
[1745460622685,0.36887882,93537.0,93513.0,0.727736]
[1745460622873,0.0534418,93530.0,93527.0,0.12833004]
[1745460623079,0.1549844,93529.0,93528.0,0.1494]
[1745460623272,0.1549844,93529.0,93528.0,0.0992]
[1745460623685,0.1549844,93529.0,93520.0,0.0502]
[1745460623686,0.1068936,93521.0,93520.0,0.0502]
[1745460623887,0.1069016,93514.0,93513.0,0.5328]
[1745460624078,0.1069016,93514.0,93513.0,0.3608]
[1745460624487,0.1069016,93514.0,93513.0,0.4677027]
[1745460625075,0.1069016,93514.0,93513.0,0.4727027]
[1745460625484,0.1069016,93514.0,93513.0,0.5674027]
[1745460625686,0.1069016,93514.0,93513.0,0.4605]
[1745460626289,0.1069016,93514.0,93513.0,0.5674027]
[1745460626677,0.1069016,93514.0,93513.0,0.5724027]
[1745460627486,0.1069016,93514.0,93513.0,0.2116027]
[1745460629291,0.0534491,93517.0,93513.0,0.2116027]
[1745460629496,0.0534476,93520.0,93519.0,0.1603411]
[1745460629695,0.0534476,93520.0,93519.0,0.07066049]
[1745460630096,0.0534476,93520.0,93519.0,0.16686049]
[1745460630891,0.0534476,93520.0,93519.0,0.17086049]
[1745460631395,0.0534476,93520.0,93519.0,0.17486049]
[1745460632100,0.0534476,93520.0,93519.0,0.17493151]
[1745460635290,0.1010476,93520.0,93519.0,0.17493151]
[1745460635500,0.1010476,93520.0,93519.0,0.17488211]
[1745460637405,0.1010476,93520.0,93519.0,0.17492312]
[1745460639195,0.1010476,93520.0,93507.0,0.0534545]
[1745460639196,0.1069084,93508.0,93507.0,0.0534545]
[1745460639495,0.1069084,93508.0,93507.0,0.2073568]
[1745460640400,0.1069084,93508.0,93507.0,0.2203568]
[1745460640607,0.0534535,93510.0,93509.0,0.1069073]
[1745460642306,0.1005535,93510.0,93509.0,0.1069073]
[1745460642898,0.1005535,93510.0,93509.0,0.1139073]
[1745460643798,0.1005535,93510.0,93509.0,0.007]
[1745460644501,0.1069096,93507.0,93506.0,0.00106944]
[1745460644696,0.1069119,93505.0,93504.0,0.00028]
[1745460644890,0.1069222,93496.0,93495.0,0.11227055]
[1745460645395,0.1069222,93496.0,93495.0,0.00534785]
[1745460645595,0.4677222,93496.0,93495.0,0.00534785]
[1745460645800,0.5652222,93496.0,93495.0,0.00534785]
[1745460646600,0.5652222,93496.0,93495.0,0.00734785]
[1745460646792,0.5151222,93496.0,93495.0,0.11427115]
[1745460646992,0.4082,93496.0,93495.0,0.11627115]
[1745460647397,0.4082,93496.0,93495.0,0.16247115]
[1745460647799,0.5151222,93496.0,93495.0,0.16247115]
[1745460650606,0.1543222,93496.0,93495.0,0.16247115]
[1745460662206,0.0474,93496.0,93495.0,0.16247115]
[1745460663005,0.0534486,93518.0,93506.0,0.1069107]
[1745460663215,0.0534515,93513.0,93506.0,0.4677107]
[1745460663409,0.1069045,93512.0,93506.0,0.4677107]
[1745460663607,0.1565045,93512.0,93506.0,0.4677107]
[1745460663808,0.0496,93512.0,93506.0,0.5182107]
[1745460664410,0.0491,93511.0,93506.0,0.5718107]
[1745460664807,0.07628,93530.0,93506.0,0.4649]
[1745460665006,0.1031,93525.0,93524.0,0.4676902]
[1745460665217,0.0491,93529.0,93528.0,0.1068856]
[1745460665516,0.1522,93529.0,93528.0,0.1068856]
[1745460666905,0.2620844,93529.0,93528.0,0.1068856]
[1745460668715,0.2610844,93529.0,93528.0,0.1068856]
[1745460669117,0.1542,93529.0,93528.0,0.1068856]
[1745460671020,0.0511,93529.0,93528.0,0.1068856]
[1745460671613,0.0501,93529.0,93528.0,0.1068856]
[1745460671808,0.0511,93529.0,93528.0,0.1068856]
[1745460672408,0.0511,93529.0,93528.0,0.1571856]
[1745460673324,0.0501,93529.0,93528.0,0.1571856]
[1745460673817,0.0501,93529.0,93528.0,0.1068856]
[1745460677717,0.001,93529.0,93528.0,0.1068856]
[1745460680528,0.00917882,93537.0,93536.0,0.1068764]
[1745460680734,0.00917882,93537.0,93536.0,0.4676764]
[1745460681229,0.00917882,93537.0,93536.0,0.5209764]
[1745460681630,0.01217882,93537.0,93536.0,0.5209764]
[1745460682824,0.01417882,93537.0,93536.0,0.5209764]
[1745460683125,0.01417882,93537.0,93536.0,0.5713764]
[1745460690618,0.01417882,93537.0,93536.0,0.57657848]
[1745460691332,0.01417882,93537.0,93536.0,0.57657839]
[1745460691727,2e-08,93537.0,93536.0,0.57657839]
[1745460692026,0.053413,93581.0,93561.0,0.1068479]
[1745460692232,0.0547,93568.0,93561.0,0.4676479]
[1745460692425,0.0511,93567.0,93561.0,0.5679479]
[1745460693028,0.0011,93567.0,93561.0,0.5679479]
[1745460693229,0.0011,93567.0,93566.0,0.1068422]
[1745460693429,0.00910196,93567.0,93566.0,0.1068422]
[1745460693626,0.00910196,93567.0,93566.0,0.11868346]
[1745460693823,0.0011,93567.0,93566.0,0.11868346]
[1745460694026,0.0011,93567.0,93566.0,0.21898346]
[1745460694745,0.0031,93567.0,93566.0,0.2071422]
[1745460696120,0.01121021,93567.0,93566.0,0.2071422]
[1745460696321,0.1,93600.0,93580.0,0.1068262]
[1745460696530,0.1038,93582.0,93580.0,0.1068262]
[1745460696726,0.11455917,93582.0,93581.0,0.1068251]
[1745460696920,0.0508,93582.0,93581.0,0.1068251]
[1745460697627,0.11251133,93582.0,93581.0,0.1068251]
[1745460697932,0.21933523,93582.0,93581.0,0.1028251]
[1745460698128,0.11251133,93582.0,93579.0,0.0548]
[1745460698329,0.0534136,93579.0,93574.0,0.0534163]
[1745460698636,0.1068302,93577.0,93576.0,0.1602434]
[1745460700427,0.1088302,93577.0,93576.0,0.1602434]
[1745460701737,0.1098302,93577.0,93576.0,0.1602434]
[1745460702331,0.1098302,93577.0,93576.0,0.0534149]
[1745460702536,0.0534164,93575.0,93574.0,0.1068324]
[1745460704037,0.0544164,93575.0,93574.0,0.1068324]
[1745460704539,0.1058164,93575.0,93574.0,0.1068324]
[1745460704837,0.1068164,93575.0,93574.0,0.1068324]
[1745460708735,0.0534,93575.0,93574.0,0.1068324]
[1745460709746,0.002,93575.0,93574.0,0.1068324]
[1745460710539,0.002,93575.0,93574.0,0.2096324]
[1745460714043,0.002,93575.0,93574.0,0.21490858]
[1745460714343,0.002,93575.0,93574.0,0.21490965]
[1745460714544,0.002,93575.0,93574.0,0.2096324]
[1745460714843,0.002,93575.0,93574.0,0.21490986]
[1745460715436,0.002,93575.0,93574.0,0.2096324]
[1745460715836,0.002,93575.0,93574.0,0.21494113]
[1745460716239,0.002,93575.0,93574.0,0.2096324]
[1745460716743,0.002,93575.0,93574.0,0.21495117]
[1745460717340,0.002,93575.0,93574.0,0.21498126]